Cogmind - Beta 15 @@@ ROGUE MODE // 2025.10.15 @ 19:08:48 Player: Luca Result: Self-destructed Performance ------------- Evolutions (2) 1000 Regions Visited (4) 800 Robots Destroyed (91) 455 Value Destroyed (2393) 2393 Prototype IDs (0) 0 Alien Tech Used (0) 0 Bonus (31) 31 TOTAL SCORE: 4679 Bonus ------- High Alert Combat Kills 31 Cogmind --------- Core Integrity 432/550 Matter 108/300 Energy 126/160 System Corruption 2% Temperature Cool (0) Movement Walking (112) Location -8/Storage Parts ------- > --- POWER (1) -------- Light Nuclear Core > --- PROPULSION (4) --- Aluminum Leg Aluminum Leg Aluminum Leg VSS Leg > --- UTILITY (4) ------ Medium Storage Unit Targeting Computer Improved Targeting Computer Hardened Light Armor Plating > --- WEAPON (2) ------- Advanced Assault Cannon > --- INVENTORY (10) --- Aluminum Leg Carbon-fiber Leg Carbon-fiber Leg Carbon-fiber Leg Hardened Light Armor Plating Field Recycling Unit (5) Advanced Assault Cannon Heavy Hammer Peak State ------------ > --- POWER ------------ Light Nuclear Core > --- PROPULSION ------- Carbon-fiber Leg Carbon-fiber Leg Carbon-fiber Leg VSS Leg > --- UTILITY ---------- Medium Storage Unit Improved Signal Interpreter Targeting Computer Improved Propulsion Shielding > --- WEAPON ----------- Advanced Assault Cannon Improved Grenade Launcher > --- INVENTORY -------- Light Nuclear Core Aluminum Leg Aluminum Leg Aluminum Leg Hardened Light Armor Plating Hardened Light Armor Plating Field Recycling Unit Advanced Assault Cannon Improved Grenade Launcher Heavy Hammer [Rating: 32] Favorites ----------- Power Light Nuclear Core Engine Light Ion Engine Power Core Light Nuclear Core Propulsion Aluminum Leg Leg Aluminum Leg Wheel Wheel Utility Targeting Computer Device Field Recycling Unit Storage Medium Storage Unit Processor Targeting Computer Protection Light Armor Plating Weapon Light Assault Rifle Energy Gun EM Pulse Gun Ballistic Gun Light Assault Rifle Ballistic Cannon Advanced Assault Cannon Launcher Rocket Launcher Impact Weapon Heavy Hammer Build | -11 -10 -9 -8 -8 ------- Run | Yrd Mat Mat Mat Sto Slots Evolved 4 | . . 2 2 . Power . | . . . . . Propulsion 2 | . . 1 1 . Utility 2 | . . 1 1 . Weapon . | . . . . . Parts Attached 78 | 7 14 25 26 6 Power 11 | 1 2 4 3 1 Engine 7 | 1 2 4 . . Core 4 | . . . 3 1 Reactor . | . . . . . Propulsion 24 | 2 5 6 9 2 Treads . | . . . . . Leg 21 | 2 5 6 6 2 Wheel 3 | . . . 3 . Hover . | . . . . . Flight . | . . . . . Utility 26 | 1 4 9 10 2 Device 1 | . . 1 . . Storage 6 | 1 2 1 2 . Processor 5 | . . 1 3 1 Hackware . | . . . . . Protection 14 | . 2 6 5 1 Artifact . | . . . . . Weapon 17 | 3 3 6 4 1 Energy Gun 1 | 1 . . . . Energy Cannon . | . . . . . Ballistic Gun 8 | 2 2 4 . . Ballistic Cannon 2 | . . . 2 . Launcher 5 | . 1 1 2 1 Special Weapon . | . . . . . Impact Weapon 1 | . . 1 . . Slashing Weapon . | . . . . . Piercing Weapon . | . . . . . Special Melee Weapon . | . . . . . Unidentified Prototypes . | . . . . . Parts Lost 15 | . 2 4 5 4 Power 2 | . 1 . . 1 Propulsion 5 | . . 2 3 . Utility 5 | . 1 1 2 1 Weapon 3 | . . 1 . 2 Highest Loss Streak 5 | . 2 2 5 2 To Critical Strikes . | . . . . . Average Backups 7 | . 6 8 7 8 Power . | . . . 1 . Propulsion 1 | . 2 2 1 3 Utility 2 | . 1 2 3 2 Weapon 2 | . 1 2 2 2 Tool/Special . | . . . . . Unused Backups 9 | . 1 3 5 . Power 2 | . . . 2 . Propulsion 1 | . . . 1 . Utility 4 | . 1 1 2 . Weapon 1 | . . 1 . . Tool/Special 1 | . . 1 . . Average Slot Usage (%) 92 | . 98 97 84 96 Engine 7 | . 13 11 1 . Core 3 | . . . 7 8 Leg 29 | . 28 32 26 36 Storage 10 | . 14 11 9 9 Processor 9 | . . 10 12 18 Protection 9 | . 12 9 7 9 Ballistic Gun 11 | . 24 18 . . Ballistic Cannon 3 | . . . 9 9 Launcher 4 | . 2 2 8 6 Peak Build Rating 32 | 6 8 14 32 30 Average Rating 14 | 4 7 11 20 26 On Entrance 11 | . 6 8 14 30 Naked Turns . | . . . . . Heaviest Build 37 | 11 17 34 37 32 Greatest Support 57 | 20 20 30 57 57 Greatest Overweight (x) 2 | . . 1 2 . Average Overweight (x) . | . . . . . Largest Inventory Capacity 15 | 8 15 15 10 10 Average Capacity 10 | 6 8 11 10 10 Most Carried 12 | 1 8 12 10 10 Average Carried 7 | . 6 8 7 8 Final Capacity 10 | 8 8 10 10 10 Final Carried 10 | 1 8 9 10 8 Class Distribution -------------------- 58% | Scavenger-Mutant 41% | Mutant Dominant Class ---------------- Scavenger-Mutant | -10/Materials Scavenger-Mutant | -9/Materials Mutant | -8/Materials Mutant | -8/Storage Resources | -11 -10 -9 -8 -8 ----------- Run | Yrd Mat Mat Mat Sto Matter Collected 2410 | 215 308 940 620 327 Remotely . | . . . . . Salvage Created 2255 | . 298 1318 372 267 Parts 158 | . 32 91 18 17 Haulers Intercepted 3 | . . 2 . 1 Recyclers Shooed 1 | . . 1 . . Parts Field Recycled 46 | . . 22 24 . Retrieved Matter 303 | . . 166 137 . Parts Self-Destructed . | . . . . . Prevented . | . . . . . Kills | -11 -10 -9 -8 -8 ------- Run | Yrd Mat Mat Mat Sto Combat Hostiles Destroyed 69 | . 15 30 14 10 Guns 28 | . 7 21 . . Cannons 10 | . . . 5 5 AOE 30 | . 8 8 9 5 Classes Destroyed 12 | . 4 7 1 . Worker 3 | . . 2 1 . Builder 5 | . . 2 1 2 Tunneler 2 | . . 1 1 . Hauler 3 | . . 2 . 1 Recycler 3 | . . 3 . . Watcher 6 | . 2 3 1 . Swarmer 23 | . 9 10 4 . Grunt 28 | . 3 11 6 8 Brawler 1 | . . 1 . . Sentry 13 | . . 8 3 2 Heavy 1 | . . . 1 . Subdweller 3 | . 3 . . . Best Kill Streak 10 | . 5 10 5 6 Combat Bots Only 7 | . 4 7 4 5 Max Kills in Single Turn 3 | . 2 3 3 2 Gunslinging . | . . . . . Exploded 2 | . 2 2 2 2 Melee . | . . . . . Uniques/NPCs Destroyed . | . . . . . Combat | -11 -10 -9 -8 -8 -------- Run | Yrd Mat Mat Mat Sto Hostile Shots Fired 388 | . 79 163 58 88 Missed 104 | . 23 42 21 18 Hits 284 | . 56 121 37 70 Projectile 284 | . 56 121 37 70 Critical Strikes 9 | . 2 3 4 . Damage Taken 3881 | . 627 1558 667 1029 Core 399 | . 107 174 47 71 Absorbed by Shields . | . . . . . Redirected to Shielding 107 | . . . 18 89 Regen/Repaired (Parts) 313 | . 64 209 40 . Core Remaining (%) 71 | 100 57 56 . . Volleys Fired 233 | . 38 96 48 51 Largest 2 | . 2 2 1 2 Hottest 76 | . 50 53 40 76 Shots Fired 354 | . 70 184 48 52 Gun 232 | . 59 173 . . Cannon 74 | . . . 31 43 Launcher 48 | . 11 11 17 9 Special . | . . . . . Kinetic 306 | . 59 173 31 43 Thermal . | . . . . . Explosive 48 | . 11 11 17 9 Electromagnetic . | . . . . . Robot Hit Streak 28 | . 6 28 13 10 Robot Miss Streak 7 | . 7 4 2 5 Penetration Max . | . . . . . Secondary Targets 4 | . 1 3 . . Max Gunslinging Chain 1 | . 1 1 . . Shots Hit Robots 235 | . 35 136 34 30 Core Hits 155 | . 24 83 27 21 Critical Kills . | . . . . . Critical Parts Destroyed 1 | . . 1 . . Critical Strikes 7 | . . 1 . 6 Blast 6 | . . . . 6 Smash 1 | . . 1 . . Melee Attacks 6 | . . 6 . . Impact 6 | . . 6 . . Slashing . | . . . . . Piercing . | . . . . . Sneak Attacks . | . . . . . Combat Hostiles . | . . . . . Follow-up Attacks . | . . . . . Damage Inflicted 6138 | . 1082 2266 1344 1446 Guns 1732 | . 254 1478 . . Cannons 1471 | . . . 617 854 Explosions 2769 | . 828 624 725 592 Melee 157 | . . 157 . . Ramming 9 | . . 7 2 . Kinetic 3203 | . 254 1478 617 854 Thermal . | . . . . . Explosive 2769 | . 828 624 725 592 Electromagnetic . | . . . . . Impact 157 | . . 157 . . Slashing . | . . . . . Piercing . | . . . . . Highest Corruption 2 | . . . 2 2 Average Corruption 2 | . . . 2 2 Corruption Purged . | . . . . . Corruption Blocked . | . . . . . Effects 7 | . . . 1 6 Message Errors 1 | . . . . 1 Matter Fused 2 | . . . 1 1 Heat Flow Errors 2 | . . . . 2 Data Loss (minor) 1 | . . . . 1 Weapon Failures 1 | . . . . 1 Overload Shots . | . . . . . Overflow Damage 63 | . 28 35 . . Projectiles . | . . . . . Explosions 28 | . 28 . . . Melee 35 | . . 35 . . Knockbacks 9 | . . . 6 3 Impact . | . . . . . Kinetic 9 | . . . 6 3 Secondary . | . . . . . Self-Inflicted Damage 151 | . . 104 47 . Shots 6 | . . 5 1 . Rammed . | . . . . . Targets Rammed 3 | . . 2 1 . Kicked 3 | . . 2 1 . Crushed . | . . . . . Highest Temperature 147 | . 48 33 42 147 Average Temperature 28 | . 11 9 14 58 Received Heat Transfer 1338 | . 153 519 234 432 Siege Activations . | . . . . . Martial Activations . | . . . . . Shielding Activations . | . . . . . Robots Disrupted . | . . . . . Combat Hostiles . | . . . . . Robots Corrupted 1 | . . 1 . . Combat Hostiles 1 | . . 1 . . Parts Fried 2 | . . 2 . . Impact Corruptions 2 | . . 2 . . Robots Melted . | . . . . . Combat Hostiles . | . . . . . Parts Melted 1 | . 1 . . . Heat Transferred . | . . . . . Parts Sabotaged . | . . . . . Parts Stolen . | . . . . . Parts Stripped . | . . . . . Power Chain Reactions . | . . . . . Alert | -11 -10 -9 -8 -8 ------- Run | Yrd Mat Mat Mat Sto Maximum Alert Level 2 | . . 2 1 . Low Security (%) 72 | 100 100 75 49 100 Level 1 20 | . . 6 50 . Level 2 7 | . . 18 . . Level 3 . | . . . . . Level 4 . | . . . . . Level 5 . | . . . . . High Security . | . . . . . Max Security . | . . . . . Peak Influence 533 | . 155 533 352 162 Initial 204 | . . 37 204 35 Average 147 | . 74 142 202 116 Influence Increases 2170 | . 423 925 507 315 Destroy 0b10 Robot/C 1320 | . 240 600 280 200 Destroy 0b10 Robot/NC 110 | . 10 65 20 15 Destroy Leader 348 | . 44 170 72 62 Successful Hack 10 | . 7 3 . . Disable Machine 60 | . 30 . 30 . Destroy Structure 247 | . 47 57 105 38 Lose Combat Pursuer 75 | . 45 30 . . Influence Decreases 2030 | . 333 530 908 259 Entered New Map 383 | . . 53 281 49 Time Decay 1506 | . 322 437 577 170 Lost Part 141 | . 11 40 50 40 Squads Dispatched 13 | . 1 4 5 3 Investigation 1 | . . 1 . . Extermination . | . . . . . Reinforcement 8 | . 1 2 5 . Assault 1 | . . 1 . . Garrison 3 | . . . . 3 Intercept . | . . . . . Searches Triggered . | . . . . . Construction Impeded 1 | . . . 1 . Haulers Reinforced . | . . . . . Active Scanning Responses . | . . . . . Cargo Convoy Interrupts . | . . . . . Stealth | -11 -10 -9 -8 -8 --------- Run | Yrd Mat Mat Mat Sto Distress Signals 6 | . 2 2 2 . Communications Jammed . | . . . . . Distress Signals . | . . . . . Times Spotted 92 | . 25 40 17 10 Peak Tracking Total 8 | . 4 8 4 5 Tactical Retreats 3 | . 1 2 . . Traps | -11 -10 -9 -8 -8 ------- Run | Yrd Mat Mat Mat Sto Traps Triggered 5 | . 1 3 1 . Indirectly . | . . . . . Trap Hack Attempts . | . . . . . Triggered . | . . . . . Disarmed . | . . . . . Reprogrammed . | . . . . . Reused . | . . . . . Traps Extracted . | . . . . . Installed . | . . . . . Triggered . | . . . . . Machines | -11 -10 -9 -8 -8 ---------- Run | Yrd Mat Mat Mat Sto Machines Disabled 5 | . 2 1 2 . Max in Single Turn 2 | . 2 1 1 . Machines Repaired . | . . . . . Machines Dismantled . | . . . . . Machines Sabotaged . | . . . . . Overloaded Fab Kills . | . . . . . Hacking | -11 -10 -9 -8 -8 --------- Run | Yrd Mat Mat Mat Sto Machines Accessed 10 | . 3 4 3 . Terminals 1 | . 1 . . . Fabricators . | . . . . . Repair Stations 4 | . 1 2 1 . Recycling Units 4 | . 1 1 2 . Scanalyzers 1 | . . 1 . . Garrison Access . | . . . . . Total Hacks 29 | . 7 16 6 . Successful 22 | . 4 13 5 . Failed 7 | . 3 3 1 . Catastrophic . | . . . . . Database Lockouts . | . . . . . Manual . | . . . . . Terminals 2 | . 2 . . . Fabricators . | . . . . . Repair Stations 16 | . 2 12 2 . Recycling Units 8 | . 3 1 4 . Scanalyzers 3 | . . 3 . . Garrison Access . | . . . . . Terminal Hacks 1 | . 1 . . . Registered Components 1 | . 1 . . . Fabricator Hacks . | . . . . . Repair Station Hacks 14 | . 2 10 2 . Scan Component 8 | . 1 6 1 . Repair 6 | . 1 4 1 . Recycling Unit Hacks 5 | . 1 1 3 . Report Inventory 1 | . . . 1 . Retrieve Matter 1 | . 1 . . . Retrieve Components 3 | . . 1 2 . Scanalyzer 2 | . . 2 . . Insert Component 1 | . . 1 . . Analyze 1 | . . 1 . . Garrison Access Hacks . | . . . . . Unauthorized Hacks . | . . . . . Terminals . | . . . . . Fabricators . | . . . . . Repair Stations . | . . . . . Recycling Units . | . . . . . Scanalyzers . | . . . . . Garrison Access . | . . . . . Data Cores Recovered . | . . . . . Used . | . . . . . Hacking Detections 5 | . 2 2 1 . Full Trace Events 1 | . . 1 . . Feedback Events . | . . . . . Feedback Blocked . | . . . . . Robot Schematics Acquired . | . . . . . Robots Built . | . . . . . Authchips . | . . . . . Time . | . . . . . Total Robot Build Rating . | . . . . . Part Schematics Acquired 1 | . . 1 . . Parts Built . | . . . . . Authchips . | . . . . . Time . | . . . . . Total Part Build Rating . | . . . . . Parts Repaired 6 | . 1 4 1 . Time 174 | . 26 110 38 . Parts Recycled . | . . . . . Recycled Matter . | . . . . . Retrieved Matter . | . . . . . Retrieved Components 30 | . . 10 20 . Parts Scanalyzed 1 | . . 1 . . Part Schematics Acquired 1 | . . 1 . . Parts Damaged . | . . . . . Bothacking | -11 -10 -9 -8 -8 ------------ Run | Yrd Mat Mat Mat Sto Used RIF Installer . | . . . . . Robots Hacked . | . . . . . Non-combat . | . . . . . Combat . | . . . . . Robot Hacks Applied . | . . . . . Relay Couplers Released . | . . . . . Fabnet Peak Effective % . | . . . . . Robots Rewired . | . . . . . Allies Hacked . | . . . . . Hacks Repelled . | . . . . . Allies | -11 -10 -9 -8 -8 -------- Run | Yrd Mat Mat Mat Sto Total Allies . | . . . . . Largest Group . | . . . . . Highest-Rated Group . | . . . . . Highest-Rated Ally . | . . . . . Total Orders . | . . . . . Ally Attacks . | . . . . . Total Damage . | . . . . . Kills . | . . . . . Allies Corrupted . | . . . . . Allies Melted . | . . . . . Intel | -11 -10 -9 -8 -8 ------- Run | Yrd Mat Mat Mat Sto Active Infowar (turns) . | . . . . . Robot Analysis Total . | . . . . . Derelict Logs Recovered . | . . . . . Drone Launches . | . . . . . Drone Recoveries . | . . . . . Exploration | -11 -10 -9 -8 -8 ------------- Run | Yrd Mat Mat Mat Sto Turns Passed 5131 | 75 872 2055 1778 351 Spaces Moved 2862 | 60 527 990 1120 165 Core 11 | 11 . . . . Treads . | . . . . . Legs 2730 | 49 527 990 999 165 Wheels 121 | . . . 121 . Hover . | . . . . . Flight . | . . . . . Fastest Speed 50 | 50 120 120 80 112 Average Speed 133 | 107 120 144 134 112 Slowest Speed 260 | 120 120 190 260 112 Overloaded Moves . | . . . . . Propulsion Burnouts . | . . . . . Robots Hopped . | . . . . . Potential Cave-ins 3 | . . . 3 . Cave-ins Triggered . | . . . . . Exploration Rate (%) 49 | 4 68 73 83 21 Regions Visited 4 Branch Regions 1 Pre-discovered Areas . | . . . . . Known Exits Taken 1 | . . . 1 . Unknown Exits Taken 3 | 1 1 1 . . Scrap Searched . | . . . . . Spaces Dug . | . . . . . Terrain Destroyed 308 | . 52 58 127 71 Melee . | . . . . . Projectile 16 | . . . 6 10 AOE 292 | . 52 58 121 61 Terrain Rammed . | . . . . . Walls Destroyed . | . . . . . Machines Disabled . | . . . . . Actions | -11 -10 -9 -8 -8 --------- Run | Yrd Mat Mat Mat Sto Total 3826 | 67 703 1434 1346 276 Wait 487 | . 100 242 96 49 Move 2858 | 59 526 989 1119 165 Hop . | . . . . . Pick Up 44 | 1 9 17 17 . Fast Attach 34 | 6 4 11 12 1 Attach 25 | . 2 11 9 3 Detach 8 | . 1 3 4 . Swap 72 | 1 16 33 17 5 Drop 56 | . 7 24 23 2 Fire 233 | . 38 96 48 51 Melee 6 | . . 6 . . Ram . | . . . . . Kick 3 | . . 2 1 . Crush . | . . . . . Escape Stasis . | . . . . . Rewire . | . . . . . Trap . | . . . . . Miscellaneous . | . . . . . Route ------- -11/Scrapyard -10/Materials (discovered 3 exits: *Mat / [*Min] / [*Sub]) -9/Materials (discovered 3 exits: *Mat x2 / [*Min]) -8/Materials (discovered 3 exits: [*Fac x2] / *Sto) -8/Storage History --------- Turn | Location | Event 5 | -11/Scrapyard | Discovered new exit (range 14) 76 | -11/Scrapyard | Entered Materials 401 | -10/Materials | Repaired Lgt. Armor Plating 564 | -10/Materials | Discovered new exit (range 11) 567 | -10/Materials | Build established: Scavenger-Mutant 576 | -10/Materials | Derelicts attacked the area 754 | -10/Materials | Discovered new exit (range 15) 914 | -10/Materials | Discovered new exit (range 8) 948 | -10/Materials | Entered another Materials area 948 | -9/Materials | Evolved 2 slots: Propulsion x1, Utility x1 1551 | -9/Materials | Discovered new exit (range 13) 1762 | -9/Materials | Discovered new exit (range 11) 2051 | -9/Materials | Repaired Lgt. Armor Plating 2664 | -9/Materials | Destroyed 7 combat bots 2763 | -9/Materials | Repaired Aluminum Leg 2790 | -9/Materials | Repaired Aluminum Leg 2825 | -9/Materials | Repaired Imp. Ion Engine 2937 | -9/Materials | Discovered new exit (range 4) 2948 | -9/Materials | First assault squad dispatched 3003 | -9/Materials | Entered another Materials area 3003 | -8/Materials | Evolved 2 slots: Propulsion x1, Utility x1 3504 | -8/Materials | Build established: Mutant 3521 | -8/Materials | Lost 5 parts (3n2u) 4257 | -8/Materials | Discovered new exit (range 10) 4411 | -8/Materials | Met 7R-MNS 4456 | -8/Materials | Discovered new exit (range 9) 4604 | -8/Materials | Discovered new exit (range 16) 4656 | -8/Materials | Identified exit to Storage 4749 | -8/Materials | Repaired Carbon-fiber Leg 4781 | -8/Materials | Entered Storage 4818 | -8/Storage | Garrison activated, responded to threat 5132 | -8/Storage | Self-destructed Last Messages --------------- 05054_ R-06 Scavenger collects Lgt. Ion Engine. 05061_ Acquired 13 matter. 05063_ Acquired 2 matter. 05078_ Acquired 17 matter. 05095_ R-06 Scavenger collects Wheel. 05099_ G-47 Trooper Imp. Heat Sink blasted off. 05100_ R-06 Scavenger collects Imp. Heat Sink. 05101_ G-47 Trooper Lgt. Nuclear Core blasted off. 05103_ R-06 Scavenger collects Lgt. Nuclear Core. 05105_ Imp. Grenade Launcher destroyed. 05105_ R-06 Scavenger destroyed. 05113_ Acquired 62 matter. 05116_ G-47 Trooper destroyed. 05117_ Acquired 15 matter. 05118_ G-47 Trooper destroyed. 05119_ U-05 Engineer builds a Wall. 05121_ Acquired 14 matter. 05122_ Acquired 7 matter. 05124_ Acquired 5 matter. 05126_ Acquired 39 matter. Map ----- +----------------------------------------------------+ | # !!??#####????????????????????? | | # !!??# ##########???????????? | | # ?# # #???????????? | | # ?# # """ #???????????? | | # # # R" #???????????? | | # # # """ #???????????? | | # "" + + #???????????? | | # "G # # #???????????? | | # "" # # [= #???????????? | | # ?# # [= #???????????? | | ####### # == #???????????? | | # # ##########???????????? | | # # #????????????????????? | | # # #????????????????????? | | # # #????????????????????? | | # *# #????????????????????? | | # =+! ##???????????????????? | | # !# ##???????????????????? | | # # ##???????????????????? | | # # #????????????????????? | | # # ##???????????????????? | | # # ##???????????????????? | | # # # #??????????????????? | | ####### # #?????????????????? | | ????# # ## ##????????????????? | | ???## #@ # #????????????????? | | ???# # [ ## #?????????????##?? | | ???# #! ## ##?????????????T??? | | ???## # *!# ????????????? #??? | | ????###! u####????????????? #??? | | ?????## = ###????????????? #??# | | ?????# ###############+### # | | ?????# | | ?????# | | ?????# | | ?????# #####+##+######+##### | | ?????#######????? #???? ??? | | ??????????##?????? #???? ?? | | ????????????????? #??? ? | | ????????????????? #??? | | ????????????????" #?? | | ????????????????" #?? [ % | | ????????????????" #?# | | ???????????????? ??# | | ???????????????? ??# | | ????????????????####??#### #% ## | | ??????????????????????????#?###? | | ???????????????????????????????? | | ???????????????????????????????? | | ???????????????????????????????? | +----------------------------------------------------+ Best States ------------- Heat Dissipation 31 Energy Generation 15 Energy Capacity 265 Matter Stores 300 Matter Capacity 300 Sight Range 16 Terrain Scan Density 10 Armor Coverage 300 Propulsion Shielding 66 Evasion (%) 55 Targeting Accuracy 11 Item Schematics ----------------- Aluminum Leg | -9/Materials | Scanalyzed Robot Schematics ------------------ None Fabricated ------------ Nothing Repaired ---------- Lgt. Armor Plating | 28% | -10/Materials Lgt. Armor Plating | 33% | -9/Materials Aluminum Leg | 26% | -9/Materials Aluminum Leg | 46% | -9/Materials Imp. Ion Engine | 50% | -9/Materials Carbon-fiber Leg | 63% | -8/Materials Alien Tech Used ----------------- None Achievements -------------- Novice Programmer Challenges ------------ None Game ------ Seed HybridHellfireSink Manual? 0 Play Time 01:15:46 Cumulative 29.6 hours Start 2025.10.11 @ 06:06:22 End 2025.10.15 @ 19:08:48 Sessions 3 Manual Loads 0 Difficulty Rogue Special Mode None Game No. 20 Rogue 20 Adventurer 0 Explorer 0 Win Type - Total 0 Types 0/0/0/0/0/0/0/0/0/0 Lore% 8 Gallery% 16 Achievement% 16 Wizard Run 0 Options --------- Layout 0 ASCII 1 Keyboard 0 Movement Mouse Keybinds 0 Fullscreen 2 Font 18/Terminus Map View 76x50 Zoom Use 98% Tactical HUD 1 Map Filters NONE Filters NONE Steam 1 RUN: e0770886-a08a-4628-80f9-2e7f71dc2d54